Cogmind - Beta 16 @@@ ROGUE MODE // 2025.11.16 @ 11:08:39 Player: tthaar Result: Destroyed by GU-1EL(x) with Makeshift Spear Performance ------------- Evolutions (0) 0 Regions Visited (4) 800 Robots Destroyed (17) 85 Value Destroyed (520) 520 Prototype IDs (6) 120 Alien Tech Used (0) 0 Bonus (390) 390 TOTAL SCORE: 1915 Bonus ------- Registered with UFD 300 Met Optimus in HQ 500 Friendly Fire -410 Cogmind --------- Core Integrity 0/250 Matter 119/300 Energy 286/290 System Corruption 1% Temperature Cool (0) Movement Walking (260) Ox2 Location -7/Scraptown Parts ------- > --- POWER (1) -------- Improved Deuterium Engine > --- PROPULSION (2) --- Aluminum Leg Overtuned Titanium Leg > --- UTILITY (2) ------ Medium Storage Unit Signal Interpreter > --- WEAPON (2) ------- Makeshift Hammer > --- INVENTORY (10) --- Scrap Suit Improved Heat Sink Small Storage Unit Medium Matter Pod (100) Experimental Sensor Array Subdweller Laser Datajack Peak State ------------ > --- POWER ------------ Improved Deuterium Engine > --- PROPULSION ------- Aluminum Leg Overtuned Titanium Leg > --- UTILITY ---------- Medium Storage Unit Signal Interpreter > --- WEAPON ----------- Gauss Rifle Shock Bomb Launcher > --- INVENTORY -------- Scrap Suit Improved Heat Sink Small Storage Unit Medium Matter Pod Experimental Sensor Array Subdweller Laser Datajack [Rating: 19] Favorites ----------- Power Ion Engine Engine Ion Engine Propulsion Aluminum Leg Leg Aluminum Leg Utility Medium Storage Unit Device Improved Heat Sink Storage Medium Storage Unit Processor Signal Interpreter Weapon Heavy Assault Rifle Energy Gun Small Laser Ballistic Gun Heavy Assault Rifle Launcher Grenade Launcher Impact Weapon Makeshift Hammer Build | -11 -10 -10 -10 -7 ------- Run | Yrd Mat Min Sub Scr Slots Evolved . | . . . . . Power . | . . . . . Propulsion . | . . . . . Utility . | . . . . . Weapon . | . . . . . Parts Attached 23 | 7 5 . 2 9 Power 4 | 1 . . 2 1 Engine 4 | 1 . . 2 1 Core . | . . . . . Reactor . | . . . . . Propulsion 5 | 2 . . . 3 Treads . | . . . . . Leg 5 | 2 . . . 3 Wheel . | . . . . . Hover . | . . . . . Flight . | . . . . . Utility 4 | 1 2 . . 1 Device 1 | . 1 . . . Storage 2 | 1 1 . . . Processor 1 | . . . . 1 Hackware . | . . . . . Protection . | . . . . . Artifact . | . . . . . Weapon 10 | 3 3 . . 4 Energy Gun 1 | 1 . . . . Energy Cannon . | . . . . . Ballistic Gun 5 | 2 2 . . 1 Ballistic Cannon . | . . . . . Launcher 3 | . 1 . . 2 Special Weapon . | . . . . . Impact Weapon 1 | . . . . 1 Slashing Weapon . | . . . . . Piercing Weapon . | . . . . . Special Melee Weapon . | . . . . . Unidentified Prototypes . | . . . . . Parts Lost 7 | . . . 2 5 Power 1 | . . . . 1 Propulsion 2 | . . . 1 1 Utility . | . . . . . Weapon 4 | . . . 1 3 Highest Loss Streak 5 | . . . 2 5 To Critical Strikes . | . . . . . Average Backups 8 | 4 7 9 8 8 Power . | 1 2 1 . . Propulsion 1 | 1 1 1 1 . Utility 3 | . . 3 4 4 Weapon 2 | 1 1 2 2 2 Tool/Special . | . . . . . Unused Backups 10 | . 3 2 . 5 Power 2 | . 1 1 . . Propulsion 2 | . 1 1 . . Utility 4 | . 1 . . 3 Weapon 1 | . . . . 1 Tool/Special 1 | . . . . 1 Average Slot Usage (%) 88 | . 88 100 94 74 Engine 14 | . 14 14 14 14 Leg 26 | . 28 28 23 27 Device 9 | . 3 14 14 3 Storage 14 | . 14 14 14 14 Processor 4 | . . . . 10 Ballistic Gun 9 | . 20 14 13 2 Launcher 8 | . 4 14 14 2 Peak Build Rating 19 | 6 11 12 13 19 Average Rating 10 | 4 7 11 12 9 On Entrance 8 | . 6 11 12 11 Avg Prop Armor Cover (%) 10 | . . . . 10 Naked Turns . | . . . . . Heaviest Build 26 | 13 22 22 22 26 Greatest Support 29 | 20 20 20 20 29 Greatest Overweight (x) 2 | . 1 1 2 2 Average Overweight (x) . | . . 1 1 . Largest Inventory Capacity 10 | 8 10 10 10 10 Average Capacity 9 | 6 9 10 10 10 Most Carried 10 | 5 10 10 10 10 Average Carried 9 | 4 7 9 9 9 Final Capacity 10 | 8 10 10 10 10 Final Carried 10 | 5 9 10 9 8 Class Distribution -------------------- 100% | Mutant Dominant Class ---------------- Mutant | -10/Materials Mutant | -10/Mines Mutant | -10/Subcaves Mutant | -7/Scraptown Resources | -11 -10 -10 -10 -7 ----------- Run | Yrd Mat Min Sub Scr Matter Collected 753 | 276 136 100 153 88 Remotely . | . . . . . Salvage Created 646 | 71 168 . . 407 Parts 41 | 3 10 . . 28 Haulers Intercepted 1 | . 1 . . . Recyclers Shooed 1 | 1 . . . . Parts Field Recycled . | . . . . . Retrieved Matter . | . . . . . Parts Self-Destructed . | . . . . . Prevented . | . . . . . Parts Restored . | . . . . . Kills | -11 -10 -10 -10 -7 ------- Run | Yrd Mat Min Sub Scr Combat Hostiles Destroyed 13 | . 3 . 2 8 Guns 1 | . 1 . . . AOE 12 | . 2 . 2 8 Classes Destroyed 10 | 1 3 . 1 5 Worker 1 | . 1 . . . Hauler 1 | . 1 . . . Recycler 1 | 1 . . . . Grunt 3 | . 3 . . . Subdweller 2 | . . . 2 . Bolteater 1 | . . . . 1 Federalist 2 | . . . . 2 Ranger 3 | . . . . 3 Guru 1 | . . . . 1 Scrapper 1 | . . . . 1 Thug 1 | . . . . 1 Best Kill Streak 4 | 1 4 . 1 4 Combat Bots Only 4 | . 3 . 1 4 Max Kills in Single Turn 3 | 1 3 . 1 3 Gunslinging . | . . . . . Exploded 2 | . 2 . 1 2 Melee . | . . . . . Uniques/NPCs Destroyed . | . . . . . Combat | -11 -10 -10 -10 -7 -------- Run | Yrd Mat Min Sub Scr Hostile Shots Fired 96 | . 19 . 12 65 Missed 25 | . 6 . 5 14 Hits 71 | . 13 . 7 51 Melee 6 | . . . . 6 Projectile 65 | . 13 . 7 45 Critical Strikes 1 | . . . . 1 Damage Taken 1204 | . 179 12 286 727 Core 271 | . 24 . 46 201 Absorbed by Shields . | . . . . . Core Remaining (%) 100 | 100 . . . . Volleys Fired 52 | 6 7 . 14 25 Largest 2 | 1 2 . 1 2 Hottest 67 | 20 53 . 30 67 Shots Fired 62 | 6 12 . 14 30 Gun 38 | 6 11 . 1 20 Cannon . | . . . . . Launcher 24 | . 1 . 13 10 Special . | . . . . . Kinetic 38 | 6 11 . 1 20 Thermal . | . . . . . Explosive 20 | . 1 . 13 6 Electromagnetic 4 | . . . . 4 Robot Hit Streak 6 | 4 5 . 6 5 Robot Miss Streak 2 | 1 2 . 1 2 Penetration Max . | . . . . . Secondary Targets . | . . . . . Shots Hit Robots 40 | 5 7 . 9 19 Core Hits 39 | 3 9 . 6 21 Critical Kills . | . . . . . Critical Parts Destroyed . | . . . . . Critical Strikes . | . . . . . Melee Attacks . | . . . . . Impact . | . . . . . Slashing . | . . . . . Piercing . | . . . . . Sneak Attacks . | . . . . . Combat Hostiles . | . . . . . Follow-up Attacks . | . . . . . Damage Inflicted 1972 | 37 235 3 391 1306 Guns 385 | 37 85 . . 263 Cannons . | . . . . . Explosions 1584 | . 150 . 391 1043 Melee . | . . . . . Ramming 3 | . . 3 . . Kinetic 385 | 37 85 . . 263 Thermal 68 | . . . . 68 Explosive 1330 | . 150 . 391 789 Electromagnetic 186 | . . . . 186 Impact . | . . . . . Slashing . | . . . . . Piercing . | . . . . . Highest Corruption 1 | . . . . 1 Average Corruption 1 | . . . . 1 Corruption Purged . | . . . . . Corruption Blocked . | . . . . . Overload Shots . | . . . . . Overflow Damage 50 | . . . 12 38 Projectiles . | . . . . . Explosions 50 | . . . 12 38 Melee . | . . . . . Knockbacks . | . . . . . Impact . | . . . . . Kinetic . | . . . . . Secondary . | . . . . . Self-Inflicted Damage 231 | . . . 154 77 Shots 10 | . . . 8 2 Rammed . | . . . . . Targets Rammed 1 | . . 1 . . Kicked 1 | . . 1 . . Crushed . | . . . . . Highest Temperature 105 | . 12 . . 105 Average Temperature 44 | . 6 . . 48 Received Heat Transfer 355 | . 102 . . 253 Siege Activations . | . . . . . Martial Activations . | . . . . . Shielding Activations . | . . . . . Robots Disrupted . | . . . . . Combat Hostiles . | . . . . . Robots Corrupted . | . . . . . Combat Hostiles . | . . . . . Parts Fried . | . . . . . Impact Corruptions . | . . . . . Robots Melted 1 | . . . . 1 Combat Hostiles . | . . . . . Parts Melted 6 | . . . . 6 Heat Transferred 137 | . . . . 137 Parts Sabotaged . | . . . . . Parts Stolen . | . . . . . Parts Stripped . | . . . . . Power Chain Reactions 2 | . . . . 2 Alert | -11 -10 -10 -10 -7 ------- Run | Yrd Mat Min Sub Scr Maximum Alert Level . | . . . . . Low Security (%) 100 | 100 100 100 . . Level 1 . | . . . . . Level 2 . | . . . . . Level 3 . | . . . . . Level 4 . | . . . . . Level 5 . | . . . . . High Security . | . . . . . Max Security . | . . . . . Peak Influence 100 | 5 100 27 . . Initial 27 | . . 27 . . Average 3 | . 31 . . . Influence Increases 182 | 5 117 . 60 . Destroy 0b10 Robot/C 60 | . 60 . . . Destroy 0b10 Robot/NC 15 | 5 10 . . . Destroy Leader 22 | . 22 . . . Destroy Structure 10 | . 10 . . . Lose Combat Pursuer 75 | . 15 . 60 . Influence Decreases 182 | 5 47 70 60 . Entered New Map 43 | . . 43 . . Time Decay 139 | 5 47 27 60 . Squads Dispatched . | . . . . . Investigation . | . . . . . Extermination . | . . . . . Reinforcement . | . . . . . Assault . | . . . . . Garrison . | . . . . . Intercept . | . . . . . Searches Triggered . | . . . . . Construction Impeded . | . . . . . Haulers Reinforced . | . . . . . Active Scanning Responses . | . . . . . Cargo Convoy Interrupts . | . . . . . Stealth | -11 -10 -10 -10 -7 --------- Run | Yrd Mat Min Sub Scr Distress Signals . | . . . . . Communications Jammed . | . . . . . Distress Signals . | . . . . . Times Spotted 34 | . 5 . 5 24 Peak Tracking Total 7 | . 5 . 2 7 Tactical Retreats 4 | . 1 . 2 1 Traps | -11 -10 -10 -10 -7 ------- Run | Yrd Mat Min Sub Scr Traps Triggered . | . . . . . Indirectly . | . . . . . Trap Hack Attempts . | . . . . . Triggered . | . . . . . Disarmed . | . . . . . Reprogrammed . | . . . . . Reused . | . . . . . Traps Extracted . | . . . . . Installed . | . . . . . Triggered . | . . . . . Machines | -11 -10 -10 -10 -7 ---------- Run | Yrd Mat Min Sub Scr Machines Disabled 1 | . . . . 1 Max in Single Turn 1 | . . . . 1 Machines Repaired . | . . . . . Machines Dismantled . | . . . . . Machines Sabotaged . | . . . . . Overloaded Fab Kills . | . . . . . Hacking | -11 -10 -10 -10 -7 --------- Run | Yrd Mat Min Sub Scr Machines Accessed 7 | . 1 1 . 5 Terminals . | . . . . . Fabricators . | . . . . . Repair Stations . | . . . . . Recycling Units 1 | . 1 . . . Scanalyzers . | . . . . . Garrison Access . | . . . . . Total Hacks 41 | . 3 1 . 37 Successful 40 | . 2 1 . 37 Failed 1 | . 1 . . . Catastrophic . | . . . . . Database Lockouts . | . . . . . Manual 1 | . 1 . . . Terminals . | . . . . . Fabricators . | . . . . . Repair Stations . | . . . . . Recycling Units 3 | . 3 . . . Scanalyzers . | . . . . . Garrison Access . | . . . . . Terminal Hacks 38 | . . 1 . 37 Record 37 | . . . . 37 Open Door 1 | . . 1 . . Fabricator Hacks . | . . . . . Repair Station Hacks . | . . . . . Recycling Unit Hacks 2 | . 2 . . . Report Inventory 1 | . 1 . . . Retrieve Components 1 | . 1 . . . Scanalyzer . | . . . . . Garrison Access Hacks . | . . . . . Unauthorized Hacks . | . . . . . Terminals . | . . . . . Fabricators . | . . . . . Repair Stations . | . . . . . Recycling Units . | . . . . . Scanalyzers . | . . . . . Garrison Access . | . . . . . Data Cores Recovered . | . . . . . Used . | . . . . . Hacking Detections . | . . . . . Full Trace Events . | . . . . . Feedback Events . | . . . . . Feedback Blocked . | . . . . . Robot Schematics Acquired . | . . . . . Robots Built . | . . . . . Authchips . | . . . . . Time . | . . . . . Total Robot Build Rating . | . . . . . Part Schematics Acquired . | . . . . . Parts Built . | . . . . . Authchips . | . . . . . Time . | . . . . . Total Part Build Rating . | . . . . . Part Studies Acquired . | . . . . . Parts Repaired . | . . . . . Time . | . . . . . Parts Recycled . | . . . . . Recycled Matter . | . . . . . Retrieved Matter . | . . . . . Retrieved Components 1 | . 1 . . . Parts Scanalyzed . | . . . . . Part Schematics Acquired . | . . . . . Parts Damaged . | . . . . . Bothacking | -11 -10 -10 -10 -7 ------------ Run | Yrd Mat Min Sub Scr Used RIF Installer . | . . . . . Robots Hacked . | . . . . . Non-combat . | . . . . . Combat . | . . . . . Robot Hacks Applied . | . . . . . Relay Couplers Released . | . . . . . Fabnet Peak Effective % . | . . . . . Robots Rewired . | . . . . . Allies Hacked . | . . . . . Hacks Repelled . | . . . . . Allies | -11 -10 -10 -10 -7 -------- Run | Yrd Mat Min Sub Scr Total Allies . | . . . . . Largest Group . | . . . . . Highest-Rated Group . | . . . . . Highest-Rated Ally . | . . . . . Total Orders . | . . . . . Ally Attacks . | . . . . . Total Damage . | . . . . . Kills . | . . . . . Allies Corrupted . | . . . . . Allies Melted 3 | . . . . 3 Intel | -11 -10 -10 -10 -7 ------- Run | Yrd Mat Min Sub Scr Active Infowar (turns) . | . . . . . Robot Analysis Total . | . . . . . Derelict Logs Recovered 4 | . . 3 . 1 Drone Launches . | . . . . . Drone Recoveries . | . . . . . Exploration | -11 -10 -10 -10 -7 ------------- Run | Yrd Mat Min Sub Scr Turns Passed 4594 | 114 202 1588 936 1754 Spaces Moved 2763 | 77 118 834 439 1295 Core 10 | 10 . . . . Treads . | . . . . . Legs 2753 | 67 118 834 439 1295 Wheels . | . . . . . Hover . | . . . . . Flight . | . . . . . Fastest Speed 50 | 50 120 190 190 110 Average Speed 159 | 110 138 190 205 128 Slowest Speed 260 | 120 190 190 260 260 Overloaded Moves . | . . . . . Propulsion Burnouts . | . . . . . Robots Hopped . | . . . . . Potential Cave-ins . | . . . . . Cave-ins Triggered . | . . . . . Exploration Rate (%) 45 | 5 29 96 23 76 Regions Visited 4 Branch Regions 3 Pre-discovered Areas 3 | . . 3 . . Known Exits Taken . | . . . . . Unknown Exits Taken 4 | 1 1 1 1 . Scrap Searched 8 | . . 1 3 4 Spaces Dug . | . . . . . Terrain Destroyed 111 | . 10 . 38 63 Melee . | . . . . . Projectile . | . . . . . AOE 111 | . 10 . 38 63 Terrain Rammed . | . . . . . Walls Destroyed . | . . . . . Machines Disabled . | . . . . . Actions | -11 -10 -10 -10 -7 --------- Run | Yrd Mat Min Sub Scr Total 2895 | 101 145 838 461 1350 Wait 4 | . . . . 4 Move 2759 | 76 117 833 438 1295 Hop . | . . . . . Pick Up 35 | 11 10 2 3 9 Fast Attach . | . . . . . Attach 16 | 7 1 . 1 7 Detach 2 | 1 . . . 1 Swap 11 | . 5 . 2 4 Drop 15 | . 5 2 3 5 Fire 52 | 6 7 . 14 25 Melee . | . . . . . Ram . | . . . . . Kick 1 | . . 1 . . Crush . | . . . . . Escape Stasis . | . . . . . Rewire . | . . . . . Trap . | . . . . . Miscellaneous . | . . . . . Route ------- -11/Scrapyard -10/Materials -10/Mines (discovered 4 exits: [*Mat x2] / [*Exi] / [*Sub]) -10/Subcaves -7/Scraptown (discovered 1 exit: *Fac) History --------- Turn | Location | Event 8 | -11/Scrapyard | Discovered new exit (range 15) 115 | -11/Scrapyard | Entered Materials 281 | -10/Materials | Discovered new exit (range 15) 317 | -10/Materials | Entered Mines 321 | -10/Mines | Build established: Mutant 333 | -10/Mines | Met a Derelict bent on vengeance 350 | -10/Mines | Found a Scrap Suit stashed away for nefarious purposes 354 | -10/Mines | Found Scrap Suit 458 | -10/Mines | Learned location of Zion (-7) 464 | -10/Mines | Met a Derelict who couldn't figure out how to use a Trap Extractor 744 | -10/Mines | Learned location of Storage (-7) 927 | -10/Mines | Discovered new exit (range 6) 1007 | -10/Mines | Deemed a non-threat by the Exiles lab entrance 1007 | -10/Mines | Discovered new exit (range 5) 1185 | -10/Mines | Discovered new exit (range 10) 1271 | -10/Mines | Found a damaged Exp. Sensor Array with a note attached 1275 | -10/Mines | Found Prototype Device 1472 | -10/Mines | Discovered new exit (range 10) 1905 | -10/Mines | Entered Subcaves 1906 | -10/Subcaves | Approached by a straggling Scientist 2012 | -10/Subcaves | Shifting Twisted Machinery released Sub. Shrapnel Launcher 2198 | -10/Subcaves | Shifting Twisted Machinery released Sub. Beam Cannon 2205 | -10/Subcaves | Shifting Twisted Machinery released Mak. Hammer 2841 | -10/Subcaves | Entered Scraptown 3375 | -7/Scraptown | Visited The Evicted 3399 | -7/Scraptown | Visited Cyclists 3443 | -7/Scraptown | Visited Comm Corps 3593 | -7/Scraptown | Heard Great Nut preacher, LISTEN AND RECITE! 3668 | -7/Scraptown | Discovered new exit (range 5) 3674 | -7/Scraptown | Identified exit to Factory 3980 | -7/Scraptown | Scanned Subdweller tech in exchange for log data 3984 | -7/Scraptown | Learned Factory emergency access door positions 4021 | -7/Scraptown | Visited Fellowship of the Rings 4047 | -7/Scraptown | Visited Cave Peace 4093 | -7/Scraptown | Visited UFD Registry 4093 | -7/Scraptown | Registered with UFD as "Cogforce" 4125 | -7/Scraptown | Visited Infowarlord's Domain 4125 | -7/Scraptown | Identified Exp. Sensor Array 4235 | -7/Scraptown | Met Optimus 4235 | -7/Scraptown | Accepted into 0bPrime 4297 | -7/Scraptown | Visited DA-N13 Charitable Foundation 4309 | -7/Scraptown | Found DCF Scrap (30 items) 4422 | -7/Scraptown | Visited Abandonware Association 4472 | -7/Scraptown | Civil war broke out across Scraptown 4545 | -7/Scraptown | Lost 10 allies 4556 | -7/Scraptown | Core integrity fell below 50% 4575 | -7/Scraptown | Core integrity fell below 20% 4595 | -7/Scraptown | Destroyed by GU-1EL(x) with Makeshift Spear Last Messages --------------- 04575_ O9-K0S(h) destroyed. 04575_ Melted Lgt. Nuclear Core. 04575_ GG-TD7(h) critical meltdown. 04575_ Mak. Targeting Computer melted. 04575_ Bolt Gun melted. 04575_ Airjet melted. [Achievement: Backstab] 04575_ A7-BWO(h) destroyed. 04576_ 8O-UK6(j) switches sides. 04578_ Slug penetrates GU-1EL(x). 04578_ Chain reaction triggered in Imp. Deuterium Engine. 04580_ 8O-UK6(j) destroyed. 04582_ HW-K27(g) misfires. 04585_ The unstable cave ceiling collapses. 04585_ Destroyed Lgt. Ion Engine. 04589_ Gauss Rifle destroyed. 04589_ Shock Bomb Launcher destroyed. 04593_ Acquired Mak. Hammer. 04594_ HW-K27(g) destroyed. Map ----- +----------------------------------------------------+ | ??????? ????? #???????????????????????????????? | | ??????? "???# #???????????????????????????????? | | ??????? "???# #??""???????????????????????????? | | ??????" """??# #?" ??????????????????????????? | | ??????? ""??# #? ???????????????????????????? | | ???????? ???# #? ????????????????????????????? | | ????????# #???# #? #????????????????????????????? | | ######### ##### ## ##???????????????????????????? | | """"""""" """"" "" "#???????????????????????????? | | =[ #???? ?????????????????????? | | ![!* ??? ????????????????????? | | %!%%* ?? ""???????????????????? | | !==[= # ""???????????????????? | | !%=&* "????????????????????? | | """""""""""""" [%!% #??????????????????????????? | | """""""""""""" =[== ???????????????????????????? | | ############# [=%=% #???????????????????????????? | | ##????????# %[[!*#########???????????????????? | | X"#????????# %==%[=# ! #???????????????????? | | ##????????# !%[ % #???????????????????? | | X"#??????# ![ = !*!*[ #???????????????????? | | #########!*=% ![ %#%!!==###???????????????????? | | =!!%[=[% %= !==[!]###???????????????????? | | [%!!%% ! !** ]]#???????????????????? | | #########!#!=!%=% *!x%=*#???????????????????? | | ""#??????##! [ # =!@*= #???????????????????? | | ##???????# [% ########???????????????????? | | X"#???????# !* "##???#??????????????????????? | | ##??????## " "#???=" "????????????????????? | | ########### "#??""" """ #????????????????? | | """"""""""""" == "## "#??????????????? | | """"""""" "" %*! ""????????????????? | | "## "!#???????????????? | | ! ! "#?? % ""????????????????? | | !* *% #??? "???????????????? | | !=*/ = !!##???" ?????????????????????? | | =%[% =[%#??????????????????????????? | | """"""""""" """"" !##??????????????????????????? | | ????####### ## #" *#???????????????????????????? | | ??????# ???????????????????????????? | | ??????# !! =![ ??????????????????????????? | | ??????# "" %= !=%!* #?????????????????????????? | | ??????# "# %/ [!*[% #?????????????????????????? | | ??????# "#X# ==%!*! #?????????????????????????? | | ??????# "# !%! ???????????????????????????? | | ??????# [ ????????????????????????? | | ??????# " " " # ?????????????????????? | | ??????#"""""""""## ??????????????????????? | | ??????############ ??????????????????????? | | ?????????????????# ??????????????????????????? | +----------------------------------------------------+ Best States ------------- Heat Dissipation 39 Energy Generation 16 Energy Capacity 290 Matter Stores 300 Matter Capacity 300 Sight Range 16 Terrain Scan Density 10 Evasion (%) 55 Item Schematics ----------------- None Robot Schematics ------------------ None Fabricated ------------ Nothing Repaired ---------- Nothing Studied --------- None Alien Tech Used ----------------- None Achievements -------------- Backstab Civilization 2243 Link The Feds Plot Armor Challenges ------------ None Game ------ Seed CompositeMultireflexPlating Manual? 0 Play Time 01:12:10 Cumulative 8.7 hours Start 2025.11.15 @ 22:34:25 End 2025.11.16 @ 11:08:39 Sessions 3 Manual Loads 0 Difficulty Rogue Special Mode None Game No. 8 Rogue 8 Adventurer 0 Explorer 0 Win Type - Total 0 Types 0/0/0/0/0/0/0/0/0/0 Lore% 8 Gallery% 9 Achievement% 10 Wizard Run 0 Options --------- Layout 1 ASCII 0 Keyboard 0 Movement Mouse Keybinds 0 Fullscreen 1 Font 48/Smallcaps Map View 50x35 Zoom Use 0% Tactical HUD 1 Map Filters NONE Filters NONE Steam 1 RUN: 306d9fdf-a0e4-4833-a8dc-ee6418144cb8